bitfinex/quotes_SOLUSD_20260217
["timestamp","ask_amount","ask_price","bid_price","bid_amount"]
[1771305715836,0.24013964,86.138,86.101,1.38854439]
[1771305716344,8.25158674,86.14,86.101,1.38854439]
[1771305716536,8.25158674,86.14,86.112,1.38854439]
[1771305716919,11.60803047,86.148,86.112,1.38854439]
[1771305717122,8.25158674,86.14,86.112,1.38854439]
[1771305718144,8.25158674,86.14,86.114,1.38854439]
[1771305718343,8.25158674,86.13,86.103,1.38854439]
[1771305719623,11.85529485,86.139,86.105,1.38854439]
[1771305720633,0.25004259,86.148,86.105,1.38854439]
[1771305720825,17.32,86.166,86.121,1.38854439]
[1771305721143,0.2,86.17,86.131,1.38854439]
[1771305721144,8.45158674,86.17,86.131,1.38854439]
[1771305721540,8.45158674,86.17,86.133,1.38854439]
[1771305721737,0.25195433,86.166,86.133,1.38854439]
[1771305722040,3.49817545,86.16,86.133,1.38854439]
[1771305722239,0.2,86.16,86.133,1.38854439]
[1771305722540,3.29817545,86.15,86.126,12.99941519]
[1771305722843,3.29817545,86.15,86.127,1.38854439]
[1771305723220,0.25386503,86.159,86.127,1.38854439]
[1771305724343,11.60658325,86.158,86.128,11.61062604]
[1771305724527,11.86418251,86.158,86.129,1.38854439]
[1771305724724,3.29817545,86.15,86.129,1.38854439]
[1771305725941,0.4594458,86.148,86.116,11.61215167]
[1771305726131,3.29817545,86.13,86.09,3.29817545]
[1771305726847,3.29817545,86.13,86.1,3.29817545]
[1771305727046,3.29817545,86.14,86.1,3.29817545]
[1771305727245,11.60779579,86.149,86.11,3.29817545]
[1771305727947,3.49817545,86.16,86.12,3.29817545]
[1771305728243,3.49817545,86.16,86.123,1.38854439]
[1771305728748,11.60644854,86.159,86.123,1.38854439]
[1771305729959,0.46717324,86.158,86.123,1.38854439]
[1771305730129,0.46717324,86.158,86.125,1.38854439]
[1771305730328,0.46906385,86.156,86.125,1.38854439]
[1771305731833,11.60671796,86.157,86.125,1.38854439]
[1771305732233,11.60644854,86.159,86.127,1.38854439]
[1771305732648,3.29817545,86.15,86.127,1.38854439]
[1771305733153,0.47272995,86.158,86.127,1.38854439]
[1771305733346,11.60644854,86.159,86.127,1.38854439]
[1771305733546,3.49817545,86.16,86.127,1.38854439]
[1771305733946,15.10450466,86.16,86.127,1.38854439]
[1771305734367,40.82211379,86.16,86.105,1.36214408]
[1771305734650,11.80632921,86.16,86.121,1.36214408]
[1771305734857,15.10450466,86.16,86.121,1.36214408]
[1771305735752,0.2,86.16,86.131,1.36214408]
[1771305736156,3.49761699,86.17,86.141,1.36214408]
[1771305736157,0.2,86.17,86.141,1.36214408]
[1771305736342,0.2,86.17,86.143,1.36214408]
[1771305737042,0.2,86.17,86.151,1.36214408]
[1771305737241,0.45623945,86.198,86.16,3.29761699]
[1771305737441,0.65193669,86.197,86.161,1.36214408]
[1771305737639,11.60115936,86.199,86.161,1.36214408]
[1771305738253,8.23881329,86.19,86.162,11.60604442]
[1771305738553,8.23881329,86.19,86.163,1.36214408]
[1771305738554,19.84112895,86.19,86.163,1.36214408]
[1771305738738,8.23881329,86.19,86.163,1.36214408]
[1771305739863,8.23881329,86.2,86.163,1.36214408]
[1771305740355,11.60106265,86.199,86.163,1.36214408]
[1771305741163,0.64349332,86.205,86.165,1.36214408]
[1771305741468,8.23881329,86.2,86.165,1.36214408]
[1771305741841,8.87404024,86.19,86.165,1.36214408]
[1771305742064,0.63522695,86.189,86.159,11.60635279]
[1771305742358,0.63522695,86.189,86.16,1.36214408]
[1771305742753,0.63116033,86.179,86.154,11.60703478]
[1771305743343,0.62713964,86.169,86.135,1.36214408]
[1771305743550,8.23881329,86.16,86.135,1.36214408]
[1771305744153,8.23881329,86.17,86.135,1.36214408]
[1771305745544,8.23881329,86.17,86.137,1.36214408]
[1771305747464,8.23881329,86.16,86.137,1.36214408]
[1771305747765,8.23881329,86.16,86.138,12.97142221]
[1771305747959,8.23881329,86.16,86.139,1.36214408]
[1771305748261,8.85035133,86.17,86.139,1.36214408]
[1771305749746,8.85035133,86.17,86.141,1.36214408]
[1771305751661,8.23881329,86.17,86.143,1.36214408]
[1771305751863,17.32,86.178,86.143,1.36214408]
[1771305752471,11.60402427,86.177,86.143,1.36214408]
[1771305753867,11.60402427,86.177,86.144,11.60846953]
[1771305754068,11.60402427,86.177,86.145,1.36214408]
[1771305754471,17.3,86.19,86.144,11.60846953]
[1771305754472,8.23881329,86.19,86.151,1.36214408]
[1771305754654,19.84118321,86.19,86.151,1.36214408]
[1771305755468,8.23881329,86.18,86.151,1.36214408]
[1771305755661,8.82122138,86.18,86.151,1.36214408]
[1771305756066,8.82122138,86.18,86.153,1.36214408]
[1771305756266,8.23881329,86.18,86.153,1.36214408]
[1771305756668,8.23881329,86.19,86.153,1.36214408]
[1771305757358,8.81435293,86.19,86.153,1.36214408]
[1771305758653,8.23881329,86.18,86.155,1.36214408]
[1771305759774,8.23881329,86.19,86.155,1.36214408]
[1771305760069,3.86533405,86.19,86.155,1.36214408]
[1771305761973,0.56226717,86.189,86.157,1.36214408]
[1771305766952,11.60254327,86.188,86.158,11.60658325]
[1771305767154,17.3,86.196,86.159,1.37679211]
[1771305767360,11.60106642,86.199,86.161,1.37679211]
[1771305767569,3.29649753,86.19,86.161,1.37679211]
[1771305767880,0.54042916,86.198,86.161,1.37679211]
[1771305768054,3.29649753,86.2,86.161,1.37679211]
[1771305768260,0.53747222,86.199,86.161,1.37679211]
[1771305769453,0.53747222,86.199,86.162,40.62115548]
[1771305769653,3.29649753,86.2,86.163,1.37679211]
[1771305769854,0.53162566,86.206,86.171,1.33993644]
[1771305770055,17.3,86.207,86.171,1.33993644]
[1771305771569,17.3,86.207,86.173,1.33993644]
[1771305771767,0.52592874,86.205,86.173,1.33993644]
[1771305773389,17.3,86.207,86.173,1.33993644]
[1771305773566,3.29649753,86.21,86.175,1.33993644]
[1771305773766,11.59971696,86.209,86.175,1.33993644]
[1771305776362,11.59971696,86.209,86.176,11.60415893]
[1771305776561,11.59971696,86.209,86.181,1.33993644]
[1771305779868,11.59971696,86.209,86.182,11.60335104]
[1771305780182,11.59971696,86.209,86.183,1.33993644]
[1771305780785,0.50182646,86.189,86.164,1.33993644]
[1771305781088,0.50182646,86.189,86.166,1.33993644]
[1771305781270,11.60075838,86.202,86.166,1.33993644]
[1771305781271,17.32,86.199,86.166,1.33993644]
[1771305781879,17.32,86.199,86.171,1.33993644]
[1771305782088,0.49928807,86.211,86.18,3.29649753]
[1771305782388,0.49677634,86.218,86.181,1.33993644]
[1771305782587,0.49677634,86.209,86.181,1.33993644]
[1771305782974,0.49677634,86.209,86.182,11.60335104]
[1771305783173,0.49677634,86.209,86.183,1.33993644]
[1771305783969,3.29649753,86.21,86.183,1.33993644]
[1771305784167,0.49429719,86.215,86.183,1.33993644]
[1771305784799,0.49429719,86.215,86.185,1.33993644]
[1771305786973,0.49429719,86.215,86.187,1.33993644]
[1771305788909,17.3,86.218,86.189,1.33993644]
[1771305789404,17.77998933,86.218,86.191,1.33993644]
[1771305789698,0.47998933,86.217,86.191,1.33993644]
[1771305791094,17.3,86.218,86.193,1.33993644]
[1771305791493,0.2,86.22,86.193,1.33993644]
[1771305791696,0.47544469,86.219,86.193,1.33993644]
[1771305792285,0.67320844,86.218,86.181,29.00847968]
[1771305792893,3.29649753,86.21,86.181,29.00847968]
[1771305793096,0.67320844,86.209,86.181,29.00847968]
[1771305793595,0.67114663,86.218,86.181,29.00847968]
[1771305794288,0.65817017,86.216,86.184,1.31559431]
[1771305796799,0.65817017,86.216,86.186,1.31559431]
[1771305797900,0.65817017,86.216,86.172,16.56]
[1771305797901,0.63925876,86.199,86.162,1.31559431]
[1771305798083,3.29622373,86.19,86.162,1.31559431]
[1771305798897,3.29622373,86.19,86.163,11.60590972]
[1771305799096,3.29622373,86.19,86.164,1.31559431]
[1771305800605,3.9172211,86.18,86.159,1.31559431]
[1771305800989,0.62099737,86.169,86.142,11.60864748]
[1771305801207,0.62099737,86.169,86.143,1.31559431]
[1771305801504,3.29622373,86.16,86.142,1.31559431]
[1771305801811,11.60375497,86.179,86.131,29.02525136]
[1771305801812,0.61507253,86.167,86.132,1.31559431]
[1771305802026,0.61507253,86.139,86.081,1.31559431]
[1771305802210,3.29622373,86.09,86.044,12.8]
[1771305802408,18.2,86.131,86.071,1.31559431]
[1771305802605,18.2,86.131,86.05,3.29622373]
[1771305802606,3.29622373,86.11,86.081,1.31559431]
[1771305803098,11.61318793,86.109,86.081,1.31559431]
[1771305803297,22.19770114,86.089,86.081,1.31559431]
[1771305803614,11.61318793,86.109,86.062,1.31559431]
[1771305803615,3.29622373,86.1,86.062,1.31559431]
[1771305803802,3.29622373,86.09,86.062,1.31559431]
[1771305804319,0.4464122,86.069,86.01,1.41559431]
[1771305804621,3.29622373,86.02,86.0,0.1]
[1771305804836,0.2464122,86.009,85.953,29.08542082]
[1771305805004,3.29622373,85.98,85.956,1.31559431]
[1771305805195,3.29622373,85.99,85.956,1.31559431]
[1771305805397,0.2464122,86.01,85.956,1.31559431]
[1771305805593,12.8,86.032,85.956,1.31559431]
[1771305805594,3.29622373,85.97,85.956,1.31559431]
[1771305805795,3.29622373,85.98,85.956,1.31559431]
[1771305806005,0.24294668,86.001,85.956,1.31559431]
[1771305806296,0.23950961,86.022,85.956,1.31559431]
[1771305806496,8.27980998,86.0,85.961,1.31559431]
[1771305807109,8.27980998,85.99,85.961,1.31559431]
[1771305807304,11.62765198,86.002,85.961,1.31559431]
[1771305807509,11.62493315,86.022,85.971,1.31559431]
[1771305807705,8.27980998,86.01,85.971,1.31559431]
[1771305807914,29.05774574,86.036,85.962,11.63304716]
[1771305807915,8.27980998,86.02,85.981,1.31559431]
[1771305808305,8.27980998,86.0,85.981,1.31559431]
[1771305809625,8.27980998,86.01,85.981,1.31559431]
[1771305809927,11.62542154,86.019,85.981,1.31559431]
[1771305810719,11.6242153,86.028,86.0,8.27980998]
[1771305810899,11.8397169,86.038,86.001,1.31559431]
[1771305811102,11.62288162,86.038,86.001,1.31559431]
[1771305812337,8.27980998,86.05,86.011,1.31559431]
[1771305812814,0.21063802,86.058,86.021,1.31559431]
[1771305813201,11.61993516,86.059,86.021,1.31559431]
[1771305813408,11.82751542,86.059,86.021,1.31559431]
[1771305814319,0.20456278,86.068,86.023,1.31559431]
[1771305814501,11.61810097,86.073,86.031,1.31559431]
[1771305814706,11.61810097,86.073,86.041,1.31559431]
[1771305814923,19.89692425,86.08,86.041,1.31559431]
[1771305815133,8.27980998,86.07,86.041,1.31559431]
[1771305816127,20.10148703,86.08,86.041,1.31559431]
[1771305816523,0.19863198,86.079,86.041,1.31559431]
[1771305816722,0.19863198,86.069,86.032,1.31559431]
[1771305817024,0.19863198,86.049,86.011,1.31559431]
[1771305817225,0.19863198,86.049,86.012,1.31559431]
[1771305817830,0.19571904,86.059,86.021,1.31559431]
[1771305818017,8.27980998,86.07,86.031,1.31559431]
[1771305818215,19.8983909,86.07,86.031,1.31559431]
[1771305819526,8.27980998,86.06,86.031,1.31559431]
[1771305819928,8.27980998,86.05,86.021,1.31559431]
[1771305820113,8.46979808,86.05,86.001,12.94336608]
[1771305820314,0.14216157,86.067,86.001,12.94336608]
[1771305820315,8.27980998,86.04,86.002,1.31559431]
[1771305820632,18.5,86.053,86.011,1.31559431]
[1771305820831,8.27980998,86.05,86.011,1.31559431]
[1771305822224,11.62128554,86.049,86.011,1.31559431]
[1771305824033,11.62128554,86.049,86.013,1.27610684]
[1771305824342,0.17365099,86.039,85.951,1.27610684]
[1771305824634,11.62128554,86.049,85.971,1.27610684]
[1771305824635,8.27980998,86.01,85.971,1.27610684]
[1771305824833,8.27980998,86.02,85.971,1.27610684]
[1771305825015,8.27980998,86.02,85.981,1.27610684]
[1771305825438,18.46,86.027,85.981,1.27610684]
[1771305825439,8.27980998,86.01,85.981,1.27610684]
[1771305826035,8.27980998,86.0,85.972,1.27610684]
[1771305826234,11.62939445,85.989,85.963,1.27610684]
[1771305826825,8.27980998,85.97,85.95,0.1]
[1771305827020,8.27980998,85.98,85.951,1.27610684]
[1771305827219,18.46,85.985,85.951,1.27610684]
[1771305827419,8.27980998,85.98,85.951,1.27610684]
[1771305827717,11.62939445,85.989,85.961,1.27610684]
[1771305827918,8.27980998,85.98,85.95,1.37610684]
[1771305828253,11.63074704,85.979,85.95,1.37610684]
[1771305829329,8.27980998,85.98,85.95,1.37610684]
[1771305829515,0.16087391,86.0,85.95,1.37610684]
[1771305829516,11.62927648,85.99,85.961,1.27610684]
[1771305829721,11.62858572,85.995,85.961,1.27610684]
[1771305829944,11.62669023,86.009,85.971,1.23767398]
[1771305830635,8.27980998,86.0,85.971,1.23767398]
[1771305831128,0.29810442,85.999,85.961,1.23767398]
[1771305831323,8.27980998,85.99,85.961,1.23767398]
[1771305831638,8.27980998,85.99,85.951,1.23767398]
[1771305832640,8.27980998,85.96,85.933,1e-08]
[1771305832941,8.27980998,85.94,85.906,1.28767398]
[1771305833132,0.05114893,85.948,85.906,1.28767398]
[1771305833133,8.27980998,85.93,85.906,1.28767398]
[1771305833333,18.5,85.941,85.906,1.28767398]
[1771305833547,8.27980998,85.94,85.906,1.28767398]
[1771305834160,8.27980998,85.93,85.89,8.37980998]
[1771305834342,8.27980998,85.92,85.89,0.1]
[1771305834522,8.27980998,85.93,85.89,20.0225939]
[1771305834725,18.48,85.934,85.89,49.12959122]
[1771305834935,8.27980998,85.94,85.9,8.27980998]
[1771305835138,8.27980998,85.94,85.89,40.84978124]
[1771305835330,8.27980998,85.94,85.9,8.27980998]
[1771305835534,11.63616053,85.939,85.9,8.27980998]
[1771305836244,8.27980998,85.94,85.901,1.21903523]
[1771305837043,30.11539855,85.945,85.911,1.21903523]
[1771305837044,18.48,85.945,85.911,1.21903523]
[1771305837617,11.63548357,85.944,85.911,1.21903523]
[1771305837822,1.20641874,85.984,85.92,8.27980998]
[1771305838023,9.48622872,85.93,85.89,0.1]
[1771305838238,1.20641874,85.935,85.89,1.31903523]
[1771305838446,8.27980998,85.93,85.891,1.21903523]
[1771305838653,4.61729252,85.957,85.891,1.21903523]
[1771305838654,8.27980998,85.94,85.892,1.21903523]
[1771305838830,18.36,85.939,85.901,1.21903523]
[1771305839523,29.99616384,85.939,85.903,1.21903523]
[1771305840245,11.63536451,85.945,85.903,1.21903523]
[1771305840428,11.63536451,85.945,85.911,1.21903523]
[1771305840629,11.63464164,85.951,85.911,1.21903523]
[1771305840834,8.27980998,85.95,85.911,1.21903523]
[1771305841032,11.63380937,85.957,85.911,1.21903523]
[1771305841236,7.57555038,85.956,85.911,1.21903523]
[1771305841450,7.57555038,85.955,85.911,1.21903523]
[1771305841649,11.63186641,85.971,85.931,1.21903523]
[1771305841833,8.27980998,85.96,85.931,1.21903523]
[1771305842036,1.20641874,85.958,85.913,1.21903523]
[1771305842230,8.27980998,85.95,85.913,1.21903523]
[1771305842436,1.20641874,85.956,85.913,1.21903523]
[1771305842727,1.20641874,85.954,85.913,1.21903523]
[1771305842935,1.20641874,85.952,85.913,1.21903523]
[1771305843227,1.20641874,85.949,85.913,1.21903523]
[1771305843449,11.63507743,85.947,85.913,1.21903523]
[1771305843645,7.58764437,85.946,85.913,1.21903523]
[1771305845051,11.63507743,85.947,85.913,1.21903523]
[1771305845450,11.63507743,85.947,85.921,1.21903523]
[1771305845628,11.63385918,85.956,85.921,1.21903523]
[1771305845828,11.63385918,85.956,85.931,1.21903523]
[1771305846029,11.6329111,85.964,85.931,1.21903523]
[1771305847746,11.63088231,85.978,85.941,1.21903523]
[1771305848051,11.63088231,85.978,85.949,1.21903523]
[1771305848261,25.42936824,85.978,85.94,8.27980998]
[1771305848430,25.42936824,85.978,85.95,8.27980998]
[1771305848431,13.79848593,85.978,85.95,8.27980998]
[1771305848631,11.63057794,85.981,85.95,8.27980998]
[1771305848845,11.6298002,85.986,85.96,8.27980998]
[1771305849242,11.6290898,85.992,85.96,8.27980998]
[1771305849643,11.6290898,85.992,85.961,11.63318248]
[1771305849937,1.20641874,85.996,85.97,8.27980998]
[1771305850950,11.62783843,86.001,85.971,1.21903523]
[1771305851323,12.83425717,86.001,85.971,1.21903523]
[1771305853134,12.83425717,86.001,85.97,8.27980998]
[1771305853135,1.20641874,85.999,85.951,1.21903523]
[1771305853341,1.20641874,85.999,85.96,8.27980998]
[1771305854157,11.62817739,85.998,85.96,8.27980998]
[1771305854343,1.21512658,85.997,85.96,8.27980998]
[1771305854838,1.21512658,85.997,85.96,9.552374]
[1771305855754,1.21512658,85.997,85.961,1.27256402]
[1771305855953,1.21512658,85.997,85.97,8.27980998]
[1771305856352,12.84357441,85.996,85.97,8.27980998]
[1771305856657,12.84357441,85.996,85.971,1.27256402]
[1771305857455,11.62736616,86.004,85.972,1.27256402]
[1771305857661,1.21512658,86.003,85.972,1.27256402]
[1771305858159,1.21512658,86.003,85.98,8.27980998]
[1771305858556,11.62736616,86.004,85.98,9.552374]
[1771305858743,11.62736616,86.004,85.981,1.27256402]
[1771305859462,11.62676882,86.009,85.981,1.27256402]
[1771305859654,12.8418954,86.009,85.981,1.27256402]
[1771305860359,1.21512658,86.008,85.963,1.27256402]
[1771305860663,1.21512658,86.006,85.965,1.27256402]
[1771305861248,18.42,86.006,85.965,1.27256402]
[1771305861549,1.21512658,85.999,85.955,1.27256402]
[1771305861752,1.21512658,85.989,85.95,8.27445013]
[1771305862152,1.21512658,85.989,85.947,1.27256402]
[1771305862555,11.6295297,85.988,85.947,1.27256402]
[1771305862762,1.21512658,85.987,85.951,1.27256402]
[1771305862961,1.21512658,85.993,85.961,1.27256402]
[1771305863266,1.21512658,85.989,85.942,1.27256402]
[1771305863563,1.21512658,85.979,85.942,1.27256402]
[1771305864159,1.21512658,85.969,85.934,1.27256402]
[1771305864673,1.21512658,85.967,85.936,1.27256402]
[1771305865456,1.21512658,85.967,85.937,11.63643133]
[1771305865658,1.21512658,85.977,85.941,1.27256402]
[1771305867073,12.84621406,85.977,85.943,1.27256402]
[1771305867371,1.21512658,85.976,85.943,1.27256402]
[1771305868966,1.21512658,85.976,85.944,11.63548357]
[1771305869148,11.63108748,85.977,85.945,1.27256402]
[1771305869353,11.63021743,85.983,85.951,1.27256402]
[1771305869759,18.34,85.991,85.961,1.27256402]
[1771305869973,1.21512658,85.989,85.961,1.27256402]
[1771305870964,1.21512658,85.989,85.962,1.27256402]
[1771305871676,1.21512658,85.987,85.956,1.27256402]
[1771305871972,1.21512658,85.987,85.957,1.27256402]
[1771305872977,1.21512658,85.987,85.961,1.27256402]
[1771305874358,18.34,85.991,85.963,1.27256402]
[1771305874966,11.62881607,85.994,85.963,1.27256402]
[1771305875577,1.21512658,85.997,85.963,1.27256402]
[1771305876461,1.21512658,85.995,85.957,11.63361657]
[1771305876661,1.21512658,85.995,85.957,12.90618059]
[1771305876881,1.21512658,85.995,85.958,1.27256402]
[1771305877486,1.21512658,85.993,85.959,11.63345315]
[1771305877684,1.21512658,85.993,85.958,1.27256402]
[1771305878070,1.21512658,85.993,85.959,11.63345315]
[1771305878382,1.21512658,85.993,85.96,1.27256402]
[1771305879670,1.21512658,85.991,85.962,1.27256402]
[1771305879871,1.21512658,85.999,85.962,1.27256402]
[1771305880560,11.62841787,85.997,85.962,1.27256402]
[1771305881167,11.62764625,86.002,85.971,1.27256402]
[1771305881582,12.84277283,86.002,85.972,1.27256402]
[1771305881768,1.21512658,86.001,85.972,1.27256402]
[1771305883475,1.21512658,86.008,85.981,1.27256402]
[1771305884785,1.29136028,86.016,85.982,1.20374373]
[1771305885392,11.62491878,86.023,85.991,1.20374373]
[1771305886073,1.29136028,86.022,85.991,1.20374373]
[1771305887694,1.29136028,86.02,85.991,1.20374373]
[1771305887988,1.29136028,86.019,85.978,1.20374373]
[1771305888188,1.29136028,85.999,85.961,1.20374373]
[1771305888572,1.29136028,85.989,85.961,1.20374373]
[1771305889994,1.29136028,85.989,85.961,12.83690226]
[1771305890187,1.29136028,85.989,85.962,1.28733716]
[1771305893277,1.19130904,85.987,85.962,1.28733716]
[1771305893577,1.19130904,85.987,85.964,1.28733716]
[1771305894409,11.62777177,86.001,85.966,1.28733716]
[1771305894697,12.81908081,86.001,85.971,1.28733716]
[1771305894913,1.19130904,86.0,85.971,1.28733716]
[1771305896801,29.06778034,86.006,85.971,1.28733716]
[1771305896802,1.19130904,85.998,85.971,1.28733716]
[1771305897000,1.19130904,85.998,85.964,11.6327366]
[1771305897211,1.19130904,85.998,85.965,1.28733716]
[1771305898009,1.19130904,85.998,85.971,1.28733716]
[1771305898380,11.62804218,85.999,85.971,1.28733716]
[1771305898697,11.62678772,86.009,85.971,1.28733716]
[1771305898998,11.62678772,86.009,85.973,1.28733716]
[1771305899385,12.81809676,86.009,85.973,1.28733716]
[1771305900283,1.19130904,86.024,85.991,1.28733716]
[1771305900693,1.19130904,86.019,85.981,1.28733716]
[1771305900894,1.19130904,85.999,85.965,1.28733716]
[1771305901099,1.19130904,85.989,85.952,1.28733716]
[1771305901902,1.19130904,85.99,85.953,1.28733716]
[1771305902108,1.19130904,85.989,85.953,1.28733716]
[1771305902308,1.19130904,85.986,85.953,1.28733716]
[1771305902490,1.19130904,85.979,85.946,1.28733716]
[1771305902695,1.19130904,85.979,85.94,1.28733716]
[1771305902993,1.19130904,85.977,85.941,11.63588973]
[1771305903199,1.19130904,85.969,85.941,11.63588973]
[1771305904102,1.19130904,85.975,85.942,1.28733716]
[1771305906315,30.0,85.976,85.951,1.28733716]
[1771305907789,11.62962404,85.988,85.951,1.28733716]
[1771305907988,18.14,85.989,85.961,1.28733716]
[1771305908189,18.14,85.989,85.963,1.28733716]
[1771305909193,1.19130904,85.993,85.963,1.28733716]
[1771305909915,18.12,86.002,85.971,1.28733716]
[1771305910213,1.19130904,85.997,85.963,1.28733716]
[1771305911113,1.19130904,85.989,85.963,1.28733716]
[1771305911617,1.19130904,85.989,85.952,1.28733716]
[1771305911907,1.19130904,85.997,85.961,1.28733716]
[1771305912110,1.19130904,85.995,85.961,12.92043216]
[1771305912490,1.19130904,85.995,85.962,1.28733716]
[1771305914504,1.19130904,85.995,85.963,11.63291183]
[1771305914693,1.19130904,85.995,85.963,12.81173227]
[1771305915008,1.19130904,85.995,85.964,1.17882044]
[1771305916312,1.27211561,85.993,85.964,1.17882044]
[1771305917005,1.27211561,85.993,85.965,11.63264119]
[1771305918295,1.27211561,85.993,85.955,11.63399453]
[1771305918503,1.27211561,85.989,85.956,1.17882044]
[1771305918903,1.27211561,85.979,85.95,11.63457207]
[1771305919222,11.63088231,85.978,85.949,11.63480668]
[1771305919404,1.27211561,85.973,85.949,11.63480668]
[1771305919710,1.27211561,85.973,85.949,12.81362712]
[1771305919912,1.27211561,85.973,85.95,1.17882044]
[1771305921000,30.0,85.972,85.95,1.17882044]
[1771305921413,1.27211561,85.971,85.95,1.17882044]
[1771305921596,1.27211561,85.971,85.944,1.17882044]
[1771305922496,1.27211561,85.971,85.946,1.17882044]
[1771305922899,1.27211561,85.977,85.946,1.17882044]
[1771305923101,1.27211561,85.976,85.946,1.17882044]
[1771305926119,1.27211561,85.976,85.951,1.17882044]
[1771305928424,1.27211561,85.976,85.952,1.17882044]
[1771305929409,1.27211561,85.974,85.952,1.17882044]
[1771305929906,1.27211561,85.974,85.953,1.17882044]
[1771305930405,18.08,85.978,85.955,1.17882044]
[1771305932001,3.2,85.991,85.962,1.17882044]
[1771305932206,12.90110435,85.992,85.962,1.17882044]
[1771305932421,1.27211561,85.991,85.962,1.17882044]
[1771305933026,1.27211561,85.989,85.962,1.17882044]
[1771305933405,1.27211561,85.989,85.963,1.17882044]
[1771305934429,1.27211561,85.987,85.963,1.17882044]
[1771305939315,3.2,86.001,85.95,3.31242208]
[1771305939316,1.27211561,85.999,85.965,1.17882044]
[1771305940036,1.27211561,85.998,85.965,1.17882044]
[1771305941015,1.27211561,85.989,85.967,1.17882044]
[1771305941528,1.27211561,85.979,85.948,1.17882044]
[1771305942312,1.27211561,85.969,85.932,1.17882044]
[1771305942512,1.27211561,85.959,85.932,1.17882044]
[1771305942913,1.27211561,85.959,85.933,11.63697299]
[1771305943113,3.31242208,85.96,85.934,1.17882044]
[1771305943310,1.27211561,85.979,85.941,1.17882044]
[1771305943532,1.27211561,85.978,85.941,1.17882044]
[1771305945218,1.27211561,85.978,85.943,1.27594622]
[1771305945619,11.63101759,85.977,85.943,1.27594622]
[1771305945822,1.19491307,85.976,85.943,1.27594622]
[1771305946638,1.19491307,85.959,85.935,11.63662837]
[1771305948235,30.0,85.958,85.935,11.63662837]
[1771305948423,1.19491307,85.957,85.935,11.63662837]
[1771305949040,30.0,85.958,85.936,1.27594622]
[1771305949347,30.0,85.958,85.941,1.27594622]
[1771305949348,29.82386402,85.958,85.941,1.27594622]
[1771305949943,17.98,85.968,85.941,1.27594622]
[1771305950154,19.25523841,85.968,85.943,1.19438283]
[1771305950452,17.98,85.968,85.943,1.19438283]
[1771305950626,17.98,85.98,85.943,1.19438283]
[1771305950827,17.98,85.98,85.951,1.19438283]
[1771305951331,1.27523841,85.979,85.951,1.19438283]
[1771305951833,1.27523841,85.979,85.943,1.19438283]
[1771305952337,1.27523841,85.969,85.938,1.19438283]
[1771305953445,1.27523841,85.959,85.93,11.63737926]
[1771305953630,1.27523841,85.959,85.931,1.19438283]
[1771305953943,1.27523841,85.969,85.931,1.19438283]
[1771305954342,1.27523841,85.969,85.932,11.63710841]
[1771305954534,1.27523841,85.969,85.933,1.19438283]
[1771305955556,1.27523841,85.967,85.935,1.19438283]
[1771305956126,1.27523841,85.967,85.94,3.31242208]
[1771305956327,1.27523841,85.975,85.941,1.19438283]
[1771305957049,1.27523841,85.993,85.961,1.19438283]
[1771305958040,1.27523841,85.991,85.961,1.19438283]
[1771305959648,1.27523841,85.991,85.963,1.19438283]
[1771305961356,1.27523841,85.998,85.965,1.19438283]
[1771305961934,1.27523841,85.998,85.964,11.63277651]
[1771305961935,1.27523841,86.006,85.971,1.19438283]
[1771305962956,4.58766049,86.0,85.971,1.19438283]
[1771305963144,1.27523841,85.999,85.971,1.19438283]
[1771305963330,1.27523841,85.999,85.967,11.63236592]
[1771305963539,1.27523841,85.997,85.962,11.63293032]
[1771305963838,1.27523841,85.989,85.962,11.63293032]
[1771305964649,1.27523841,85.989,85.963,1.19438283]
[1771305965569,3.31242208,86.0,85.96,3.31242208]
[1771305965570,1.27523841,85.997,85.965,1.19438283]
[1771305965749,1.27523841,85.997,85.971,1.19438283]
[1771305967862,1.27523841,85.997,85.966,1.19438283]
[1771305968055,1.27523841,85.997,85.971,1.19438283]
[1771305969062,1.27523841,85.997,85.973,1.19438283]
[1771305970658,1.27523841,86.007,85.973,1.19438283]
[1771305971344,1.27523841,86.007,85.98,3.31242208]
[1771305971541,1.27523841,86.007,85.981,1.19438283]
[1771305971943,1.27523841,86.013,86.0,3.31242208]
[1771305972147,1.27523841,86.0,85.974,11.63142345]
[1771305972353,1.27523841,86.0,85.97,3.31242208]
[1771305973161,1.27523841,85.999,85.97,3.31242208]
[1771305973353,1.27523841,85.996,85.97,3.31242208]
[1771305974354,1.19812019,85.994,85.97,3.31242208]
[1771305974768,1.19812019,85.994,85.971,11.63182933]
[1771305974962,1.19812019,85.994,85.971,12.80761082]
[1771305975162,1.19812019,85.994,85.972,1.17578149]
[1771305975472,30.0,85.992,85.972,1.17578149]
[1771305976271,1.19812019,85.994,85.974,1.17578149]
[1771305977052,1.19812019,85.989,85.952,11.63440059]
[1771305977281,1.19812019,85.979,85.948,1.17578149]
[1771305977462,1.19812019,85.979,85.949,11.63480668]
[1771305977659,1.19812019,85.979,85.95,3.31242208]